[Event "Live Chess"]
[Site "Chess.com"]
[Date "2023.05.20"]
[Round "-"]
[White "Tema1107"]
[Black "NatashaRegan"]
[Result "1-0"]
[WhiteElo "1971"]
[BlackElo "1838"]
[TimeControl "300"]
[EndTime "9:54:04 PDT"]
[Termination "Tema1107 won by resignation"]

1. d4 {[%clk 0:04:58.3]} 1... Nf6 {[%clk 0:04:56.1]} 2. c4 {[%clk 0:04:57]} 2...
g6 {[%clk 0:04:54.4]} 3. Nc3 {[%clk 0:04:51.4]} 3... Bg7 {[%clk 0:04:53.2]} 4.
g3 {[%clk 0:04:50.8]} 4... d6 {[%clk 0:04:52.3]} 5. Bg2 {[%clk 0:04:50.1]} 5...
O-O {[%clk 0:04:51.5]} 6. Nf3 {[%clk 0:04:48]} 6... c6 {[%clk 0:04:50.7]} 7. O-O
{[%clk 0:04:47.2]} 7... Qa5 {[%clk 0:04:49.2]} 8. e4 {[%clk 0:04:43.6]} 8... Qb4
{[%clk 0:04:44.6]} 9. Qd3 {[%clk 0:04:36]} 9... a5 {[%clk 0:04:38.8]} 10. a3
{[%clk 0:04:33.5]} 10... Qb6 {[%clk 0:04:35.1]} 11. h3 {[%clk 0:04:32.4]} 11...
Na6 {[%clk 0:04:32.5]} 12. Be3 {[%clk 0:04:26.4]} 12... Qc7 {[%clk 0:04:27.7]}
13. Rab1 {[%clk 0:04:16.9]} 13... e5 {[%clk 0:04:24.9]} 14. b4 {[%clk
0:04:06.9]} 14... axb4 {[%clk 0:04:20.9]} 15. axb4 {[%clk 0:04:06.8]} 15... Re8
{[%clk 0:04:14.4]} 16. b5 {[%clk 0:03:57.7]} 16... cxb5 {[%clk 0:04:05.3]} 17.
Nxb5 {[%clk 0:03:53.8]} 17... Qe7 {[%clk 0:03:58.2]} 18. d5 {[%clk 0:03:43.7]}
18... Nc5 {[%clk 0:03:54.2]} 19. Bxc5 {[%clk 0:03:40.6]} 19... dxc5 {[%clk
0:03:52.7]} 20. d6 {[%clk 0:03:38]} 20... Qd8 {[%clk 0:03:43.5]} 21. Nc7 {[%clk
0:03:35.3]} 21... Ra2 {[%clk 0:03:35.5]} 22. Nxe8 {[%clk 0:03:28.7]} 22... Nxe8
{[%clk 0:03:33.7]} 23. Rfd1 {[%clk 0:03:21.1]} 23... Be6 {[%clk 0:03:27.5]} 24.
d7 {[%clk 0:03:13.4]} 24... Nf6 {[%clk 0:03:17.6]} 25. Rxb7 {[%clk 0:03:10.9]}
25... Nxd7 {[%clk 0:03:10.3]} 26. Rxd7 {[%clk 0:03:06.5]} 26... Bxd7 {[%clk
0:03:08.8]} 27. Qxd7 {[%clk 0:03:06.4]} 27... Qa5 {[%clk 0:03:03.5]} 28. Qe8+
{[%clk 0:03:03]} 28... Bf8 {[%clk 0:03:01]} 29. Rd8 {[%clk 0:03:02.3]} 29...
Ra1+ {[%clk 0:02:53.7]} 30. Kh2 {[%clk 0:03:00.3]} 1-0

[Event "Live Chess"]
[Site "Chess.com"]
[Date "2023.05.20"]
[Round "-"]
[White "YF22Raptor"]
[Black "HoarseyHorsey"]
[Result "1/2-1/2"]
[WhiteElo "1005"]
[BlackElo "1390"]
[TimeControl "300"]
[EndTime "9:54:05 PDT"]
[Termination "Game drawn - timeout vs insufficient material"]

1. e4 {[%clk 0:04:58]} 1... c5 {[%clk 0:04:58.8]} 2. c4 {[%clk 0:04:55.5]} 2...
Nc6 {[%clk 0:04:56.8]} 3. Nf3 {[%clk 0:04:53.7]} 3... g6 {[%clk 0:04:56.2]} 4.
d4 {[%clk 0:04:48]} 4... e6 {[%clk 0:04:50.8]} 5. d5 {[%clk 0:04:43]} 5... exd5
{[%clk 0:04:49.8]} 6. exd5 {[%clk 0:04:41.9]} 6... Nce7 {[%clk 0:04:48.6]} 7.
Nc3 {[%clk 0:04:36.3]} 7... Bg7 {[%clk 0:04:47.4]} 8. Be3 {[%clk 0:04:33.7]}
8... b6 {[%clk 0:04:45]} 9. Qc2 {[%clk 0:04:29.9]} 9... Nf6 {[%clk 0:04:44]} 10.
Bd3 {[%clk 0:04:26]} 10... O-O {[%clk 0:04:42.5]} 11. O-O-O {[%clk 0:04:21.2]}
11... d6 {[%clk 0:04:41.5]} 12. a3 {[%clk 0:04:17.8]} 12... Bg4 {[%clk
0:04:39.3]} 13. Be2 {[%clk 0:04:13.5]} 13... Bf5 {[%clk 0:04:37.1]} 14. Bd3
{[%clk 0:04:10.3]} 14... Bd7 {[%clk 0:04:32.8]} 15. b4 {[%clk 0:04:07.8]} 15...
cxb4 {[%clk 0:04:28.2]} 16. axb4 {[%clk 0:04:06.3]} 16... a5 {[%clk 0:04:25.1]}
17. b5 {[%clk 0:04:00.8]} 17... Nf5 {[%clk 0:04:01.6]} 18. Nd4 {[%clk
0:03:50.9]} 18... Nxe3 {[%clk 0:03:58.9]} 19. fxe3 {[%clk 0:03:49.8]} 19... Re8
{[%clk 0:03:54]} 20. e4 {[%clk 0:03:44.3]} 20... Bg4 {[%clk 0:03:48.6]} 21. Nf3
{[%clk 0:03:40.8]} 21... Nd7 {[%clk 0:03:33.9]} 22. Na4 {[%clk 0:03:37]} 22...
Qf6 {[%clk 0:03:04.2]} 23. Rhf1 {[%clk 0:03:32.4]} 23... Qa1+ {[%clk 0:02:52.5]}
24. Kd2 {[%clk 0:03:30.8]} 24... Bh6+ {[%clk 0:02:38.4]} 25. Ke2 {[%clk
0:03:23.7]} 25... Qe5 {[%clk 0:02:26.3]} 26. h3 {[%clk 0:03:19.3]} 26... Bxf3+
{[%clk 0:02:21.9]} 27. gxf3 {[%clk 0:03:17.7]} 27... Bf4 {[%clk 0:02:12.8]} 28.
Ra1 {[%clk 0:02:48.2]} 28... Rab8 {[%clk 0:02:05.8]} 29. Ra2 {[%clk 0:02:42.5]}
29... Qd4 {[%clk 0:01:54.1]} 30. Kd1 {[%clk 0:02:31.8]} 30... Ne5 {[%clk
0:01:47.7]} 31. Nb2 {[%clk 0:02:18.7]} 31... Qe3 {[%clk 0:01:13.3]} 32. Rf2
{[%clk 0:01:50]} 32... Bg3 {[%clk 0:01:03.7]} 33. Rf1 {[%clk 0:01:42.8]} 33...
Nxf3 {[%clk 0:00:50.1]} 34. Be2 {[%clk 0:01:35.7]} 34... Nd4 {[%clk 0:00:37.5]}
35. Qd2 {[%clk 0:01:26.2]} 35... Qxd2+ {[%clk 0:00:35.2]} 36. Kxd2 {[%clk
0:01:25.5]} 36... Rxe4 {[%clk 0:00:33]} 37. Bd3 {[%clk 0:01:18]} 37... Re7
{[%clk 0:00:27.5]} 38. Nd1 {[%clk 0:01:15.4]} 38... Rbe8 {[%clk 0:00:25.2]} 39.
Kc3 {[%clk 0:01:10.7]} 39... Ne2+ {[%clk 0:00:19.5]} 40. Bxe2 {[%clk 0:01:09.4]}
40... Rxe2 {[%clk 0:00:18.5]} 41. Rxe2 {[%clk 0:01:07.5]} 41... Rxe2 {[%clk
0:00:18.2]} 42. Rg1 {[%clk 0:01:05]} 42... Be5+ {[%clk 0:00:16.3]} 43. Kd3
{[%clk 0:01:03.1]} 43... Rh2 {[%clk 0:00:13.4]} 44. Rf1 {[%clk 0:00:45.3]} 44...
Rxh3+ {[%clk 0:00:12]} 45. Ne3 {[%clk 0:00:44.5]} 45... f5 {[%clk 0:00:08.7]}
46. Kd2 {[%clk 0:00:40.6]} 46... Bd4 {[%clk 0:00:06.2]} 47. Re1 {[%clk
0:00:38.5]} 47... Kf7 {[%clk 0:00:04.2]} 48. Re2 {[%clk 0:00:37.2]} 48... Bxe3+
{[%clk 0:00:03.2]} 49. Rxe3 {[%clk 0:00:36.3]} 49... Rxe3 {[%clk 0:00:03]} 50.
Kxe3 {[%clk 0:00:35.7]} 50... Kf6 {[%clk 0:00:02.9]} 51. Kf4 {[%clk 0:00:35.1]}
51... g5+ {[%clk 0:00:02.8]} 52. Kf3 {[%clk 0:00:33.5]} 52... Ke5 {[%clk
0:00:02.2]} 53. Ke3 {[%clk 0:00:31.9]} 53... f4+ {[%clk 0:00:01.2]} 54. Kf3
{[%clk 0:00:31.4]} 54... Kd4 {[%clk 0:00:00.9]} 55. Kg4 {[%clk 0:00:30.2]} 55...
Kxc4 {[%clk 0:00:00.8]} 56. Kxg5 {[%clk 0:00:29.7]} 56... Kxd5 {[%clk
0:00:00.7]} 57. Kxf4 {[%clk 0:00:29.1]} 57... Kc5 {[%clk 0:00:00.6]} 58. Kg5
{[%clk 0:00:28.7]} 58... Kxb5 {[%clk 0:00:00.5]} 59. Kh6 {[%clk 0:00:28.1]}
59... a4 {[%clk 0:00:00.4]} 60. Kxh7 {[%clk 0:00:27.7]} 60... a3 {[%clk
0:00:00.3]} 61. Kg7 {[%clk 0:00:27.2]} 61... a2 {[%clk 0:00:00.2]} 62. Kf6
{[%clk 0:00:26.8]} 62... a1=Q+ {[%clk 0:00:00.1]} 63. Ke6 {[%clk 0:00:26.4]}
1/2-1/2

[Event "Live Chess"]
[Site "Chess.com"]
[Date "2023.05.20"]
[Round "-"]
[White "stevefairhurst"]
[Black "domrobson"]
[Result "0-1"]
[WhiteElo "542"]
[BlackElo "1725"]
[TimeControl "300"]
[EndTime "9:54:07 PDT"]
[Termination "domrobson won by checkmate"]

1. e4 {[%clk 0:04:56.6]} 1... e5 {[%clk 0:04:59.5]} 2. Nf3 {[%clk 0:04:55.3]}
2... Nc6 {[%clk 0:04:58.1]} 3. Bc4 {[%clk 0:04:53.9]} 3... Nf6 {[%clk
0:04:57.5]} 4. Ng5 {[%clk 0:04:52.6]} 4... d5 {[%clk 0:04:56.4]} 5. exd5 {[%clk
0:04:51.1]} 5... b5 {[%clk 0:04:56.1]} 6. dxc6 {[%clk 0:04:48.6]} 6... bxc4
{[%clk 0:04:54.5]} 7. Qe2 {[%clk 0:04:45]} 7... Qd5 {[%clk 0:04:50.2]} 8. d3
{[%clk 0:04:42.5]} 8... Qxg2 {[%clk 0:04:43.1]} 9. Rf1 {[%clk 0:04:39.2]} 9...
cxd3 {[%clk 0:04:35.1]} 10. Qxd3 {[%clk 0:04:35.8]} 10... Be7 {[%clk 0:04:25.3]}
11. Qc4 {[%clk 0:04:31.1]} 11... O-O {[%clk 0:04:21.4]} 12. Nc3 {[%clk
0:04:16.7]} 12... a5 {[%clk 0:04:19.7]} 13. Nd5 {[%clk 0:04:13]} 13... Nxd5
{[%clk 0:04:06.5]} 14. Qxd5 {[%clk 0:04:09.8]} 14... Qxd5 {[%clk 0:04:04.9]} 15.
Rg1 {[%clk 0:04:06.2]} 15... Bxg5 {[%clk 0:04:01.6]} 16. Bxg5 {[%clk 0:04:03.7]}
16... Qe4+ {[%clk 0:03:58.5]} 17. Kd2 {[%clk 0:04:01.6]} 17... Bf5 {[%clk
0:03:56.6]} 18. Rae1 {[%clk 0:03:57.2]} 18... Qxc2+ {[%clk 0:03:54.5]} 19. Ke3
{[%clk 0:03:53.9]} 19... Qd3# {[%clk 0:03:53.6]} 0-1

[Event "Live Chess"]
[Site "Chess.com"]
[Date "2023.05.20"]
[Round "-"]
[White "CheckString"]
[Black "jagbama"]
[Result "0-1"]
[WhiteElo "1299"]
[BlackElo "1133"]
[TimeControl "300"]
[EndTime "9:54:10 PDT"]
[Termination "jagbama won by resignation"]

1. e4 {[%clk 0:04:58.2]} 1... e5 {[%clk 0:04:55.9]} 2. Nc3 {[%clk 0:04:57.1]}
2... Bc5 {[%clk 0:04:53.9]} 3. f4 {[%clk 0:04:55.2]} 3... exf4 {[%clk
0:04:44.2]} 4. Nf3 {[%clk 0:04:54.5]} 4... g5 {[%clk 0:04:38.2]} 5. d4 {[%clk
0:04:52.5]} 5... Bb4 {[%clk 0:04:36.3]} 6. Bc4 {[%clk 0:04:50.2]} 6... f6 {[%clk
0:04:33.4]} 7. h4 {[%clk 0:04:35.7]} 7... g4 {[%clk 0:04:18.7]} 8. Nh2 {[%clk
0:04:34]} 8... d6 {[%clk 0:04:05.2]} 9. Nxg4 {[%clk 0:04:28.9]} 9... Qe7 {[%clk
0:03:54.2]} 10. Bd3 {[%clk 0:04:16.7]} 10... Nd7 {[%clk 0:03:39.2]} 11. Bxf4
{[%clk 0:04:03.2]} 11... f5 {[%clk 0:03:30.5]} 12. Nf2 {[%clk 0:03:57.5]} 12...
fxe4 {[%clk 0:03:26.6]} 13. Nxe4 {[%clk 0:03:52.3]} 13... Ngf6 {[%clk
0:03:23.5]} 14. Bg5 {[%clk 0:03:35.6]} 14... d5 {[%clk 0:03:18.1]} 15. Bxf6
{[%clk 0:03:34.1]} 15... Nxf6 {[%clk 0:03:17]} 16. Qd2 {[%clk 0:03:25.8]} 16...
dxe4 {[%clk 0:03:10.9]} 17. Be2 {[%clk 0:03:25]} 17... e3 {[%clk 0:03:02.6]} 18.
Qd3 {[%clk 0:03:24.1]} 18... Nd5 {[%clk 0:02:48.7]} 19. O-O-O {[%clk 0:03:20]}
19... Bxc3 {[%clk 0:02:23.6]} 20. bxc3 {[%clk 0:03:18.7]} 20... Nf4 {[%clk
0:02:21.1]} 21. Qc4 {[%clk 0:03:14.3]} 21... Be6 {[%clk 0:02:04.6]} 22. Qxc7
{[%clk 0:03:10.3]} 22... Qa3+ {[%clk 0:02:02.2]} 0-1

[Event "Live Chess"]
[Site "Chess.com"]
[Date "2023.05.20"]
[Round "-"]
[White "Bob2pen"]
[Black "KGreenGator"]
[Result "0-1"]
[WhiteElo "1765"]
[BlackElo "1775"]
[TimeControl "300"]
[EndTime "9:54:10 PDT"]
[Termination "KGreenGator won by resignation"]

1. c4 {[%clk 0:04:57.8]} 1... Nf6 {[%clk 0:04:58.3]} 2. g3 {[%clk 0:04:56.9]}
2... e5 {[%clk 0:04:56.1]} 3. Bg2 {[%clk 0:04:55.8]} 3... d6 {[%clk 0:04:54.9]}
4. Nc3 {[%clk 0:04:54.3]} 4... Be7 {[%clk 0:04:52.8]} 5. d3 {[%clk 0:04:52.7]}
5... c6 {[%clk 0:04:52]} 6. Nf3 {[%clk 0:04:51.2]} 6... h6 {[%clk 0:04:50.5]} 7.
O-O {[%clk 0:04:50]} 7... Be6 {[%clk 0:04:49]} 8. b4 {[%clk 0:04:48.3]} 8...
Nbd7 {[%clk 0:04:48.1]} 9. b5 {[%clk 0:04:41.2]} 9... Rb8 {[%clk 0:04:43]} 10.
a4 {[%clk 0:04:39.6]} 10... d5 {[%clk 0:04:41.3]} 11. Nd2 {[%clk 0:04:31.2]}
11... d4 {[%clk 0:04:39.9]} 12. Nce4 {[%clk 0:04:28.7]} 12... Nxe4 {[%clk
0:04:37.5]} 13. Nxe4 {[%clk 0:04:26.8]} 13... c5 {[%clk 0:04:34.7]} 14. a5
{[%clk 0:04:23.2]} 14... Nf6 {[%clk 0:04:33.1]} 15. Ba3 {[%clk 0:04:18.4]} 15...
Nxe4 {[%clk 0:04:29.5]} 16. Bxe4 {[%clk 0:04:16.9]} 16... b6 {[%clk 0:04:28]}
17. axb6 {[%clk 0:04:15]} 17... axb6 {[%clk 0:04:27.3]} 18. Bc1 {[%clk
0:04:10.2]} 18... O-O {[%clk 0:04:25.5]} 19. Bd2 {[%clk 0:04:08.6]} 19... f5
{[%clk 0:04:24.3]} 20. Bg2 {[%clk 0:04:06.5]} 20... f4 {[%clk 0:04:21.3]} 21.
Be4 {[%clk 0:04:01.3]} 21... Bg5 {[%clk 0:04:13.4]} 22. Ra7 {[%clk 0:03:51.3]}
22... fxg3 {[%clk 0:04:11.2]} 23. hxg3 {[%clk 0:03:47.8]} 23... Bh3 {[%clk
0:04:05.9]} 24. Bg2 {[%clk 0:03:45]} 24... Qc8 {[%clk 0:04:01.8]} 25. Bxg5
{[%clk 0:03:41.3]} 25... hxg5 {[%clk 0:04:00]} 26. Qd2 {[%clk 0:03:40.4]} 26...
Bxg2 {[%clk 0:03:51.2]} 27. Qxg5 {[%clk 0:03:28.8]} 27... Bb7 {[%clk 0:03:45.8]}
28. Qxe5 {[%clk 0:03:23.6]} 28... Ra8 {[%clk 0:03:42.3]} 29. Rfa1 {[%clk
0:03:17.3]} 29... Rxa7 {[%clk 0:03:39.8]} 30. Rxa7 {[%clk 0:03:15.9]} 30... Qb8
{[%clk 0:03:37.3]} 31. Ra1 {[%clk 0:03:08.7]} 31... Qxe5 {[%clk 0:03:34.8]} 0-1

[Event "Live Chess"]
[Site "Chess.com"]
[Date "2023.05.20"]
[Round "-"]
[White "TDCMF"]
[Black "BostonStrangler"]
[Result "0-1"]
[WhiteElo "340"]
[BlackElo "2017"]
[TimeControl "300"]
[EndTime "9:54:16 PDT"]
[Termination "BostonStrangler won by checkmate"]

1. e4 {[%clk 0:04:57.5]} 1... c5 {[%clk 0:04:58.7]} 2. d4 {[%clk 0:04:54.5]}
2... g6 {[%clk 0:04:58]} 3. d5 {[%clk 0:04:51.7]} 3... Bg7 {[%clk 0:04:56.4]} 4.
Bf4 {[%clk 0:04:40.6]} 4... d6 {[%clk 0:04:54.3]} 5. Bc4 {[%clk 0:04:31]} 5...
Bxb2 {[%clk 0:04:51.5]} 6. Nd2 {[%clk 0:04:20.2]} 6... Bxa1 {[%clk 0:04:46.8]}
7. Qxa1 {[%clk 0:04:19.7]} 7... Nf6 {[%clk 0:04:45.9]} 8. Ngf3 {[%clk
0:04:17.7]} 8... Nbd7 {[%clk 0:04:43.7]} 9. O-O {[%clk 0:04:15.6]} 9... a6
{[%clk 0:04:41.9]} 10. Rb1 {[%clk 0:03:57.2]} 10... b5 {[%clk 0:04:40]} 11. Bb3
{[%clk 0:03:50.4]} 11... c4 {[%clk 0:04:39]} 12. Nxc4 {[%clk 0:03:45.8]} 12...
bxc4 {[%clk 0:04:38]} 13. Bxc4 {[%clk 0:03:45.3]} 13... Qc7 {[%clk 0:04:34.9]}
14. Rb4 {[%clk 0:03:32.6]} 14... a5 {[%clk 0:04:30]} 15. Ra4 {[%clk 0:03:26.5]}
15... Nc5 {[%clk 0:04:28.6]} 16. Ra3 {[%clk 0:03:15.3]} 16... Ncxe4 {[%clk
0:04:23.2]} 17. Rb3 {[%clk 0:02:56.7]} 17... Qxc4 {[%clk 0:04:18.6]} 18. Qb1
{[%clk 0:02:51.6]} 18... O-O {[%clk 0:04:15.5]} 19. Rb8 {[%clk 0:02:37.7]} 19...
Rxb8 {[%clk 0:04:11.6]} 20. Qxb8 {[%clk 0:02:36.4]} 20... Qxc2 {[%clk
0:04:09.3]} 21. h3 {[%clk 0:02:33]} 21... Qxf2+ {[%clk 0:04:07.1]} 22. Kh1
{[%clk 0:02:16.8]} 22... Bxh3 {[%clk 0:04:04.5]} 23. Qb1 {[%clk 0:02:02.6]}
23... Qxg2# {[%clk 0:04:02.5]} 0-1

[Event "Live Chess"]
[Site "Chess.com"]
[Date "2023.05.20"]
[Round "-"]
[White "Inglaterra"]
[Black "OceanFloater"]
[Result "1-0"]
[WhiteElo "2083"]
[BlackElo "984"]
[TimeControl "300"]
[EndTime "9:54:22 PDT"]
[Termination "Inglaterra won by resignation"]

1. e4 {[%clk 0:04:58.7]} 1... c6 {[%clk 0:04:59.6]} 2. d4 {[%clk 0:04:55.2]}
2... d5 {[%clk 0:04:59.2]} 3. exd5 {[%clk 0:04:54.1]} 3... cxd5 {[%clk
0:04:58.6]} 4. Bd3 {[%clk 0:04:50.9]} 4... Nc6 {[%clk 0:04:50.2]} 5. c3 {[%clk
0:04:48.2]} 5... e6 {[%clk 0:04:46.4]} 6. Bf4 {[%clk 0:04:46.6]} 6... Bd6 {[%clk
0:04:42.6]} 7. Bg3 {[%clk 0:04:40.5]} 7... Bxg3 {[%clk 0:04:36.3]} 8. hxg3
{[%clk 0:04:39.8]} 8... Nge7 {[%clk 0:04:35.8]} 9. Nf3 {[%clk 0:04:35.8]} 9...
Ng6 {[%clk 0:04:34]} 10. Nbd2 {[%clk 0:04:26.2]} 10... Qf6 {[%clk 0:04:28]} 11.
Qe2 {[%clk 0:04:20.6]} 11... a6 {[%clk 0:04:20.5]} 12. O-O-O {[%clk 0:04:05.1]}
12... b5 {[%clk 0:04:17.8]} 13. Kb1 {[%clk 0:03:46.5]} 13... Na5 {[%clk
0:04:13.7]} 14. Ne5 {[%clk 0:03:41.4]} 14... Bb7 {[%clk 0:04:00.4]} 15. Nxg6
{[%clk 0:03:21.6]} 15... fxg6 {[%clk 0:03:56.5]} 16. f4 {[%clk 0:03:14.3]} 16...
Nc4 {[%clk 0:03:54.5]} 17. Nf3 {[%clk 0:03:11.8]} 17... a5 {[%clk 0:03:42.8]}
18. Ng5 {[%clk 0:03:06]} 18... Bc8 {[%clk 0:03:30.6]} 19. Nxh7 {[%clk
0:02:48.7]} 19... a4 {[%clk 0:03:21.9]} 20. Nxf6+ {[%clk 0:02:46.5]} 1-0

[Event "Live Chess"]
[Site "Chess.com"]
[Date "2023.05.20"]
[Round "-"]
[White "thrithik"]
[Black "BearFromUkraine"]
[Result "0-1"]
[WhiteElo "476"]
[BlackElo "1167"]
[TimeControl "300"]
[EndTime "9:54:30 PDT"]
[Termination "BearFromUkraine won by checkmate"]

1. h3 {[%clk 0:04:56.8]} 1... e5 {[%clk 0:04:58.9]} 2. Nf3 {[%clk 0:04:51.6]}
2... Nc6 {[%clk 0:04:56.7]} 3. Nxe5 {[%clk 0:04:51.2]} 3... Nxe5 {[%clk
0:04:55.3]} 4. Nc3 {[%clk 0:04:49.1]} 4... Nf6 {[%clk 0:04:53]} 5. Ne4 {[%clk
0:04:47.2]} 5... Nxe4 {[%clk 0:04:51.6]} 6. f3 {[%clk 0:04:45.2]} 6... Nf6
{[%clk 0:04:50.4]} 7. e4 {[%clk 0:04:43.1]} 7... Bc5 {[%clk 0:04:43.9]} 8. g4
{[%clk 0:04:34.2]} 8... Nxe4 {[%clk 0:04:37]} 9. fxe4 {[%clk 0:04:30.4]} 9...
Qh4+ {[%clk 0:04:35.6]} 10. Ke2 {[%clk 0:04:20.8]} 10... Qf2# {[%clk 0:04:29.7]}
0-1

[Event "Live Chess"]
[Site "Chess.com"]
[Date "2023.05.20"]
[Round "-"]
[White "Tilbs_12"]
[Black "PiotrD11"]
[Result "1-0"]
[WhiteElo "1594"]
[BlackElo "1328"]
[TimeControl "300"]
[EndTime "9:54:36 PDT"]
[Termination "Tilbs_12 won by resignation"]

1. e4 {[%clk 0:04:58.5]} 1... d5 {[%clk 0:04:59.9]} 2. exd5 {[%clk 0:04:56.9]}
2... Nf6 {[%clk 0:04:59.5]} 3. d4 {[%clk 0:04:55]} 3... Nxd5 {[%clk 0:04:57.8]}
4. Nf3 {[%clk 0:04:49.8]} 4... c6 {[%clk 0:04:55]} 5. c4 {[%clk 0:04:43.3]} 5...
Nf6 {[%clk 0:04:53.4]} 6. Nc3 {[%clk 0:04:42.1]} 6... Bf5 {[%clk 0:04:52.8]} 7.
Be2 {[%clk 0:04:38.1]} 7... e6 {[%clk 0:04:52]} 8. O-O {[%clk 0:04:36.5]} 8...
Bd6 {[%clk 0:04:51.2]} 9. Bd3 {[%clk 0:04:29.1]} 9... O-O {[%clk 0:04:45.8]} 10.
Bg5 {[%clk 0:04:15.8]} 10... Nbd7 {[%clk 0:04:42.7]} 11. Re1 {[%clk 0:04:12.2]}
11... Qc7 {[%clk 0:04:24.1]} 12. Bxf5 {[%clk 0:04:07.8]} 12... exf5 {[%clk
0:04:22]} 13. h3 {[%clk 0:04:06.6]} 13... Rfe8 {[%clk 0:04:03.7]} 14. Qd3 {[%clk
0:03:58.7]} 14... g6 {[%clk 0:04:02]} 15. c5 {[%clk 0:03:51.6]} 15... Bf8 {[%clk
0:04:00.3]} 16. b4 {[%clk 0:03:45.4]} 16... a6 {[%clk 0:03:54.8]} 17. a4 {[%clk
0:03:36.5]} 17... Bg7 {[%clk 0:03:48.6]} 18. b5 {[%clk 0:03:31.4]} 18... axb5
{[%clk 0:03:38.8]} 19. axb5 {[%clk 0:03:30.2]} 19... Rxe1+ {[%clk 0:03:19.3]}
20. Rxe1 {[%clk 0:03:25.3]} 20... cxb5 {[%clk 0:02:43.1]} 21. Nxb5 {[%clk
0:03:18.8]} 21... Qa5 {[%clk 0:02:28.3]} 22. Nd6 {[%clk 0:03:15.9]} 22... Ne4
{[%clk 0:02:08.5]} 23. Qc4 {[%clk 0:03:06.5]} 23... Nxg5 {[%clk 0:02:03]} 24.
Nxg5 {[%clk 0:02:37.5]} 24... Qxe1+ {[%clk 0:02:00.3]} 25. Kh2 {[%clk
0:02:36.4]} 25... Ra1 {[%clk 0:01:33.9]} 26. Qxf7+ {[%clk 0:02:32.3]} 26... Kh8
{[%clk 0:01:32.3]} 27. Qxd7 {[%clk 0:02:24.2]} 27... Qh1+ {[%clk 0:01:29.6]} 28.
Kg3 {[%clk 0:02:22.8]} 28... Ra3+ {[%clk 0:01:24.3]} 29. Nf3 {[%clk 0:02:13]}
29... f4+ {[%clk 0:01:21.1]} 30. Kxf4 {[%clk 0:02:05.8]} 30... Rxf3+ {[%clk
0:00:56.2]} 31. Kxf3 {[%clk 0:02:02.3]} 31... Qd1+ {[%clk 0:00:55.7]} 32. Kg3
{[%clk 0:01:50.2]} 32... Qd3+ {[%clk 0:00:47.3]} 33. f3 {[%clk 0:01:44.4]} 33...
Bxd4 {[%clk 0:00:38]} 34. Nf7+ {[%clk 0:01:01.2]} 34... Kg8 {[%clk 0:00:30.6]}
35. Qe6 {[%clk 0:00:54.9]} 35... Qf5 {[%clk 0:00:11.6]} 36. Nh6+ {[%clk
0:00:41.6]} 36... Kg7 {[%clk 0:00:09.1]} 37. Nxf5+ {[%clk 0:00:40.7]} 37... gxf5
{[%clk 0:00:07.8]} 38. Qd7+ {[%clk 0:00:39.4]} 38... Kg6 {[%clk 0:00:06.6]} 39.
Qxd4 {[%clk 0:00:39]} 1-0

[Event "Live Chess"]
[Site "Chess.com"]
[Date "2023.05.20"]
[Round "-"]
[White "alexlines8"]
[Black "CocheseUK"]
[Result "1-0"]
[WhiteElo "1260"]
[BlackElo "1075"]
[TimeControl "300"]
[EndTime "9:54:39 PDT"]
[Termination "alexlines8 won by resignation"]

1. e4 {[%clk 0:04:59.2]} 1... e5 {[%clk 0:04:57.8]} 2. Nc3 {[%clk 0:04:55.4]}
2... Nc6 {[%clk 0:04:50.3]} 3. Bc4 {[%clk 0:04:53.5]} 3... Nf6 {[%clk
0:04:42.4]} 4. d3 {[%clk 0:04:51.7]} 4... Bc5 {[%clk 0:04:38.4]} 5. f4 {[%clk
0:04:48]} 5... exf4 {[%clk 0:04:22.4]} 6. Bxf4 {[%clk 0:04:47.9]} 6... Nh5
{[%clk 0:04:18.8]} 7. Qxh5 {[%clk 0:04:42.3]} 7... g6 {[%clk 0:04:15.5]} 8. Qxc5
{[%clk 0:04:38.8]} 8... d6 {[%clk 0:04:02.5]} 9. Qa3 {[%clk 0:04:30.4]} 9... O-O
{[%clk 0:03:58.5]} 10. Nf3 {[%clk 0:04:23.4]} 10... Nd4 {[%clk 0:03:56]} 11.
Nxd4 {[%clk 0:04:15.6]} 11... Qh4+ {[%clk 0:03:54.2]} 12. Bg3 {[%clk 0:04:12.3]}
12... Qf6 {[%clk 0:03:47.1]} 13. Nf3 {[%clk 0:03:55.5]} 1-0

[Event "Live Chess"]
[Site "Chess.com"]
[Date "2023.05.20"]
[Round "-"]
[White "Davidagye"]
[Black "aliciabutteriss"]
[Result "1-0"]
[WhiteElo "1647"]
[BlackElo "511"]
[TimeControl "300"]
[EndTime "9:54:44 PDT"]
[Termination "Davidagye won on time"]

1. b4 {[%clk 0:04:56.9]} 1... e5 {[%clk 0:04:55.6]} 2. Bb2 {[%clk 0:04:55.7]}
2... Nc6 {[%clk 0:04:52.7]} 3. b5 {[%clk 0:04:54.6]} 3... Nd4 {[%clk 0:04:46.2]}
4. e3 {[%clk 0:04:44.6]} 4... Nf5 {[%clk 0:04:37.3]} 5. Bxe5 {[%clk 0:04:43.5]}
5... d6 {[%clk 0:04:27.1]} 6. Bb2 {[%clk 0:04:40]} 6... Be6 {[%clk 0:04:22.7]}
7. Nf3 {[%clk 0:04:37.5]} 7... h6 {[%clk 0:04:16.5]} 8. c4 {[%clk 0:04:35.8]}
8... Nge7 {[%clk 0:04:09]} 9. d4 {[%clk 0:04:34.7]} 9... d5 {[%clk 0:04:03.4]}
10. c5 {[%clk 0:04:32.4]} 10... c6 {[%clk 0:03:54.6]} 11. a4 {[%clk 0:04:30.9]}
11... g6 {[%clk 0:03:41.8]} 12. Bd3 {[%clk 0:04:14.8]} 12... Bg7 {[%clk
0:03:29.4]} 13. g4 {[%clk 0:04:13.7]} 13... Nxe3 {[%clk 0:03:18.9]} 14. fxe3
{[%clk 0:04:11.1]} 14... Bxg4 {[%clk 0:03:15.4]} 15. Nbd2 {[%clk 0:04:08.5]}
15... Qd7 {[%clk 0:02:55.7]} 16. Bc3 {[%clk 0:03:59.1]} 16... Nf5 {[%clk
0:02:36.5]} 17. Qe2 {[%clk 0:03:52.3]} 17... O-O {[%clk 0:02:29]} 18. O-O {[%clk
0:03:42.1]} 18... Rfe8 {[%clk 0:02:15.7]} 19. e4 {[%clk 0:03:33]} 19... dxe4
{[%clk 0:02:04.1]} 20. Nxe4 {[%clk 0:03:27.6]} 20... Rad8 {[%clk 0:01:43.2]} 21.
Rad1 {[%clk 0:03:00.8]} 21... Qe7 {[%clk 0:01:30]} 22. h3 {[%clk 0:02:20.9]}
22... Bxh3 {[%clk 0:01:22.3]} 23. Rf2 {[%clk 0:02:19.6]} 23... Bg4 {[%clk
0:01:15.1]} 24. Bc4 {[%clk 0:02:17.1]} 24... Bxf3 {[%clk 0:00:52.3]} 25. Qxf3
{[%clk 0:02:11.4]} 25... Qh4 {[%clk 0:00:46.2]} 26. Bd3 {[%clk 0:02:03.1]} 26...
cxb5 {[%clk 0:00:35]} 27. axb5 {[%clk 0:02:00.5]} 27... Rc8 {[%clk 0:00:21.5]}
28. Nd6 {[%clk 0:01:58.4]} 28... Qg5+ {[%clk 0:00:14.3]} 29. Kf1 {[%clk
0:01:52.8]} 29... Nh4 {[%clk 0:00:08.6]} 30. Qxf7+ {[%clk 0:01:48]} 30... Kh7
{[%clk 0:00:06.9]} 31. d5 {[%clk 0:01:43.5]} 1-0